Workbook

Sheet Лист1
A1: Техническое задание на устройство инженерных систем
B2: наименование работ | D2: наименование материаллов, модель | E2: кол | F2: ед. | G2: стоим | H2: сумма | J2: общая
F3: измер. | H3: работ | I3: матер-ов | J3: стоимость
D4: Водоснабжение
B5: разводка гхвс, подвод к | J5: 153040
B6: потребителю | E6: 14 | F6: выходов | G6: 2000 | H6: 28000
D8: Кран шаровой ф-1/2 | F8: шт | G8: 0 | I8: 0 | L8: =SUM(I8:K8) -> 0
D9: кран американка 3/4 бугати | E9: 6 | F9: шт | G9: 670 | I9: =PRODUCT(E9,G9) -> 4020
D10: Трубы г хвс ф-16 рехау | E10: 150 | F10: п.м | G10: 120 | I10: 18000
D11: установочный угол ф-16х1\2 | E11: 14 | F11: шт | G11: 560 | I11: 7840
D12: калектор ГХВС 14выходов | E12: 1 | F12: ком. | G12: 11900 | I12: 11900
D13: евроконус рехау ф-3\4х16 | E13: 14 | F13: шт | G13: 385 | I13: 5390
D14: надвижные гильзы ф-16 | E14: 14 | F14: шт | G14: 50 | I14: 700
D15: калекторные шкафы шрн-2 | E15: 1 | F15: шт | G15: 2350 | I15: 2350
D16: бойлер косвен.нагрева 160л | E16: 1 | F16: шт | G16: 35000 | I16: 35000
D17: фильтр очистки | E17: 1 | F17: шт | G17: 2700 | I17: 2700
D18: элимент очистки | E18: 1 | F18: шт | G18: 700 | I18: 700
D19: футорки ф-25х3/4 бронза | E19: 2 | F19: шт | G19: 160 | I19: 320
B20: уст-шкафа с под-й калекторов | E20: 1 | F20: шт | G20: 8000 | H20: 8000 | I20: 0
D21: американки ф-1днх25ппр | E21: 6 | F21: шт | G21: 320 | I21: 1920
D22: труба ф-25 арми-ая | E22: 20 | F22: пм | G22: 110 | I22: 2200
D23: фитенги ф-25 | E23: 50 | F23: шт | G23: 40 | I23: 2000
B24: обвязка бойлера кос-го нагрева | E24: 1 | F24: шт | G24: 22000 | H24: 22000 | I24: 0
D25: Канализация
B26: Подводка быт. канализации | E26: 6 | F26: точек | G26: 3500 | H26: =PRODUCT(E26,G26) -> 21000 | J26: =SUM(H26:I46) -> 31830
B27: к потребителю
F28: шт | I28: =PRODUCT(E28,G28) -> 0
D29: канализационные трубы d110 | E29: 8 | F29: п.м | G29: 180 | I29: =PRODUCT(E29,G29) -> 1440
D30: канализационные трубы d50 | E30: 18 | F30: п.м | G30: 120 | I30: 2160
D31: тройники ф110 | E31: 4 | F31: шт | G31: 170 | I31: 680
D32: тройники ф110-ф50 косой | E32: 4 | F32: шт | G32: 120 | I32: 480
D33: тройники ф50 | E33: 8 | F33: шт | G33: 70 | I33: 560
D34: отводы ф110 поворот 45 гр | E34: 12 | F34: шт | G34: 85 | I34: 1020
D35: отводы ф50 поворот 45 гр | E35: 18 | F35: шт | G35: 55 | I35: 990
D36: рюмка ф110-ф50 | E36: 2 | F36: шт | G36: 160 | I36: 320
D37: аэраторы ф50 | E37: 3 | F37: шт | G37: 250 | I37: 750
D38: кронштейны ф110 | F38: шт | I38: 0
D39: крепежная лента | E39: 1 | F39: рул | G39: 600 | I39: 600
D40: клипсы ф-110 | E40: 10 | F40: шт | G40: 12 | I40: 120
D41: клипсы ф-50 | E41: 10 | F41: шт | G41: 7 | I41: 70
B42: траншея 1,8 м глубина | F42: п.м | H42: =PRODUCT(E42,G42) -> 0
B43: 0.5 м ширина.
D44: канализационные трубы Poliplast d32 | E44: 8 | F44: пм | G44: 110 | I44: =PRODUCT(E44,G44) -> 880
D45: переход ф50х32 | E45: 2 | F45: шт | G45: 80 | I45: =PRODUCT(E45,G45) -> 160
D46: отвод ф32 | E46: 12 | F46: шт | G46: 50 | I46: 600
D47: Отопление
B48: установка и обвязка котла | E48: 1 | F48: шт | G48: 20000 | H48: =PRODUCT(E48,G48) -> 20000 | J48: 109750
B49: ото-ия с турбо-дымоходом
D51: котел отопления одноконтурный | E51: 1 | F51: шт | G51: 40000 | I51: =PRODUCT(E51,G51) -> 40000
D52: 24квт
D53: тройники-ф-3/4-1/2-3/4 | E53: 8 | F53: шт | G53: 285 | I53: =PRODUCT(E53,G53) -> 2280
D54: мпк ф-3\4 х 25 | E54: 18 | F54: шт | G54: 160 | I54: =PRODUCT(E54,G54) -> 2880
D55: циркуляционный Grundfoss 25/60 | E55: 3 | F55: шт | G55: 6950 | I55: 20850
D56: фильтр грубой очистки ф-40 | E56: 1 | F56: шт | G56: 1200 | I56: 1200
D57: нипель ф1дх3/4 | E57: 6 | F57: шт | G57: 160 | I57: 960
D58: краны шаровый ф 3/4 "американка" | E58: 14 | F58: шт | G58: 670 | I58: 9380
D59: расширительный бак 24 литра гвс | E59: 1 | F59: шт | G59: 3850 | I59: 3850
D60: кронштейн для расширительного бачка | E60: 1 | F60: шт | G60: 950 | I60: 950
D61: группа защиты котла | E61: 0 | F61: шт | G61: 0 | I61: 0
D62: кран подпитки котла | E62: 4 | F62: шт | G62: 380 | I62: 1520
D63: термомонометры задней под-ки | E63: 6 | F63: шт | G63: 980 | I63: 5880
A64: ЗАКАЗЧИК _________________ Страница 1 из 2 ПОДРЯДЧИК _________________
B67: наименование работ | D67: наименование материаллов, модель | E67: кол | F67: ед. | G67: стоим | H67: сумма | J67: общая
F68: измер. | H68: работ | I68: матер-ов | J68: стоимость
D69: калектор основного подмеса 3х кон. | E69: 2 | F69: шт | G69: 4500 | I69: =PRODUCT(E69,G69) -> 9000 | J69: 347731
B70: уст-ка основного калектора | E70: 2 | F70: шт | G70: 1500 | H70: 3000 | I70: 0
B71: сборка насосных групп | E71: 3 | F71: шт | G71: 7000 | H71: 21000 | I71: 0
D72: мультифлекс угловой | E72: 17 | F72: шт | G72: 950 | I72: =PRODUCT(E72,G72) -> 16150
D73: калектор ото-я 9 выходов 1го этажа | E73: 1 | F73: ком. | G73: 7335 | I73: 7335
D74: калектор ото-я 8 выходов 2го этажа | E74: 1 | F74: ком. | G74: 6520 | I74: 6520
B75: закачка жидкости и | F75: кон | H75: =PRODUCT(E75,G75) -> 0
B76: опресовка системы
D77: жидкость незамерзающая -30 | E77: 0 | F77: литров | I77: =PRODUCT(E77,G77) -> 0
B78: разводка труб отопления | E78: 17 | F78: точек | G78: 3500 | H78: =PRODUCT(E78,G78) -> 59500
B79: до радиаторов
D80: евроконус ф-16 х 3\4 рехау | E80: 68 | F80: шт | G80: 387 | I80: =PRODUCT(E80,G80) -> 26316
D81: американки ф-1дн х 32ппр | E81: 4 | F81: шт | G81: 420 | I81: =PRODUCT(E81,G81) -> 1680
D82: трубы рехау ф-16 | E82: 300 | F82: п.м | G82: 87 | I82: 26100
D83: напровляющий отвод рехау ф-16 | E83: 68 | F83: шт | G83: 175 | I83: 11900
D84: мпк ф-1дн х 32ппр | E84: 8 | F84: шт | G84: 180 | I84: 1440
D85: трубы арми-ые ф-32 | E85: 30 | F85: п.м | G85: 128 | I85: 3840
D86: футорки ф-25х3/4 бронза | E86: 6 | F86: шт | G86: 170 | I86: 1020
D87: калекторные шкафы шрн-3 | E87: 2 | F87: шт | G87: 2800 | I87: 5600
D88: нипель ф-3/4 | E88: 6 | F88: шт | G88: 80 | I88: 480
D89: фитинги ф-32 | E89: 50 | F89: шт | G89: 50 | I89: 2500
D90: терморегулятор на радиаторы | E90: 17 | F90: шт | G90: 750 | I90: 12750
E91: 0 | F91: шт | G91: 0 | I91: 0
E92: 0 | F92: шт | G92: 0 | I92: 0
E93: 0 | F93: шт | G93: 0 | I93: 0
E94: 0 | F94: шт | G94: 0 | I94: 0
B95: установка и подключение | E95: 17 | F95: точек | G95: 1000 | H95: =PRODUCT(E95,G95) -> 17000
B96: радиаторов отопления
D97: радиаторы керми нижней пдводки- | E97: 0 | F97: шт | G97: 0 | I97: =PRODUCT(E97,G97) -> 0
D98: из расчота 180кв.м | E98: 17 | F98: шт | G98: 5800 | I98: =PRODUCT(E98,G98) -> 98600
B99: уст-ка шкафов.и их обвязка | E99: 2 | F99: шт | G99: 8000 | I99: 16000
D100: Расходные материалы
D101: расходные материалы | I101: 5000 | J101: =SUM(H101:I103) -> 10000
D102: доставка | I102: 5000
B103: 8 926 853 88 22 | D103: Дмитрий | I103: =PRODUCT(E103,G103) -> 0
E105: итого | H105: =SUM(H101:H103,H69:H99,H48:H63,H26:H46,H5:H24) -> 199500 | I105: =SUM(I101:I103,I69:I99,I48:I63,I26:I46,I5:I24) -> 452851 | J105: =SUM(J101:J103,J69:J99,J48:J63,J26:J46,J5:J24) -> 652351
A109: ЗАКАЗЧИК С КОМПЛЕКТАЦИЕЙ СОГЛАСЕН _____________________________________
A132: ЗАКАЗЧИК _________________ Страница 2 из 2 ПОДРЯДЧИК _________________

Sheet Лист3

Sheet Лист2
